fUST/lending_fUST_20240119
["ID","MTS","AMOUNT","RATE_DAILY","PERIOD"]
[312082074,1705606232887,-643.9449239,0.0002833,2]
[312082075,1705606232897,-828.68224376,0.0002833,2]
[312082076,1705606232909,-902.02099213,0.0002833,5]
[312082118,1705606238601,-526.29712741,0.00026,2]
[312082120,1705606238610,-754.62050467,0.0002833,5]
[312082122,1705606238619,-1703.40888756,0.0002833,2]
[312082124,1705606238628,-155.50751184,0.00028331,2]
[312082127,1705606238645,-253.740217,0.00028331,20]
[312082129,1705606238659,-677.90828851,0.00028332,2]
[312082131,1705606238669,-13278.44781032,0.00028332,2]
[312082132,1705606238678,-154.98450464,0.00028339,2]
[312082134,1705606238688,-155.05714456,0.00028339,2]
[312082136,1705606238697,-234.81558708,0.00028339,2]
[312082138,1705606238706,-197.72297422,0.00028339,2]
[312082140,1705606238715,-778.50761483,0.0002834,2]
[312082142,1705606238724,-554.58212829,0.0002834,2]
[312082144,1705606238733,-156.23789831,0.0002834,2]
[312082146,1705606238743,-2101.67947703,0.00028341,2]
[312082147,1705606238753,-154.9690062,0.00028341,2]
[312082149,1705606238763,-154.9690062,0.00028341,2]
[312082151,1705606238773,-154.9690062,0.00028341,2]
[312082153,1705606238782,-2753.04656689,0.00028341,2]
[312082155,1705606238791,-154.9690062,0.00028342,2]
[312082157,1705606238800,-20415.59294996,0.00028342,2]
[312082159,1705606238810,-166.666666,0.0002879,2]
[312082161,1705606238819,-153.0,0.00029341,2]
[312082163,1705606238828,-153.0,0.00029478,2]
[312082164,1705606238838,-3599.46025067,0.00029893,2]
[312082166,1705606238847,-302.62387044,0.00029986,2]
[312082168,1705606238857,-351.14579978,0.0003,2]
[312082170,1705606238867,-410.41281499,0.0003,4]
[312082172,1705606238876,-464.23133021,0.0003,2]
[312082174,1705606238885,-687.89788967,0.0003,4]
[312082176,1705606238895,-165.072399,0.00030137,2]
[312082178,1705606238904,-160.104227,0.00030137,2]
[312082179,1705606238913,-154.44169357,0.000302,7]
[312082181,1705606238923,-153.56603548,0.00030231,7]
[312082183,1705606238932,-3174.10443609,0.00030295,4]
[312082185,1705606238942,-983.48949875,0.00030381,2]
[312082187,1705606238951,-500.0,0.00030399,2]
[312082189,1705606238961,-500.0,0.00030536,2]
[312082191,1705606238970,-2338.20547355,0.00030604,4]
[312082193,1705606238979,-167.847466,0.00030845,2]
[312082195,1705606238989,-280.0,0.0003085,15]
[312082206,1705606239097,-1045.45812768,0.00030882,4]
[312082208,1705606239107,-154.44169357,0.0003089,7]
[312082209,1705606239117,-5383.38532582,0.00030899,4]
[312082211,1705606239127,-392.8450641,0.00030899,4]
[312082213,1705606239136,-400.17858735,0.00030899,2]
[312082215,1705606239146,-606.8645406,0.00030899,4]
[312082217,1705606239155,-722.56427357,0.000309,2]
[312082219,1705606239164,-176.68786473,0.0003091,4]
[312082221,1705606239173,-439.68276137,0.00030911,4]
[312082223,1705606239183,-227.83997944,0.00030911,4]
[312082225,1705606239192,-260.47007699,0.00030911,4]
[312082226,1705606239202,-301.18213313,0.00030911,4]
[312082228,1705606239211,-549.47321105,0.00030911,2]
[312082230,1705606239221,-686.6489252,0.00030911,4]
[312082232,1705606239229,-1693.74494191,0.00030911,4]
[312082234,1705606239238,-190.92884081,0.00030911,4]
[312082236,1705606239247,-155.09608849,0.00030911,4]
[312082238,1705606239256,-260.75400073,0.00030911,4]
[312082239,1705606239265,-310.88585753,0.00030911,4]
[312082241,1705606239274,-164.08761243,0.00030911,4]
[312082243,1705606239283,-7030.39654495,0.00030911,4]
[312082245,1705606239292,-478.52138415,0.00030911,3]
[312082247,1705606239303,-155.00310006,0.00030911,4]
[312082249,1705606239312,-213.39589788,0.00030911,4]
[312082251,1705606239321,-267.28433405,0.00030911,4]
[312082253,1705606239330,-328.87291893,0.00030911,4]
[312082255,1705606239339,-322.2105311,0.00030911,4]
[312082256,1705606239348,-935.15218072,0.00030911,4]
[312082258,1705606239357,-3740.30326134,0.00030912,4]
[312082260,1705606239366,-309.82961307,0.00030913,4]
[312082262,1705606239375,-164.02625171,0.00030913,4]
[312082264,1705606239386,-1334.97004275,0.00030913,4]
[312082266,1705606239395,-876.838464,0.00030913,4]
[312082268,1705606239404,-211.50641669,0.00030913,4]
[312082270,1705606239412,-155.41830515,0.00030913,4]
[312082272,1705606239421,-8752.33712952,0.00030913,4]
[312082273,1705606239429,-219.87371404,0.00030913,4]
[312082275,1705606239438,-272.04729889,0.00030913,4]
[312082277,1705606239448,-238.01318679,0.00030913,6]
[312082279,1705606239458,-1141.49056584,0.00030913,4]
[312082281,1705606239467,-380.13585362,0.00030913,4]
[312082283,1705606239476,-357.63692071,0.00031,2]
[312082285,1705606239484,-160.104227,0.00031022,2]
[312082287,1705606239493,-198.957615,0.00031178,2]
[312082288,1705606239502,-165.072399,0.00031416,2]
[312082290,1705606239516,-2307.19514435,0.00031577,2]
[312082292,1705606239525,-396.23007536,0.00031577,2]
[312082294,1705606239533,-270.31845111,0.00031577,2]
[312082296,1705606239542,-152.72560131,0.00031611,7]
[312082298,1705606239551,-153.0,0.00031641,2]
[312082300,1705606239560,-327.9954237,0.00031778,2]
[312082301,1705606239569,-198.9082381,0.00031778,2]
[312082303,1705606239579,-457.5024889,0.00031778,2]
[312082305,1705606239587,-160.104227,0.00031907,2]
[312082307,1705606239597,-617.77070102,0.00031999,3]
[312082309,1705606239606,-215.84548789,0.00032,2]
[312082311,1705606239615,-215.84548789,0.00032,2]
[312082312,1705606239624,-215.84548789,0.00032,2]
[312082314,1705606239633,-215.84548789,0.00032,2]
[312082316,1705606239642,-215.84548789,0.00032,2]
[312082318,1705606239651,-215.84548789,0.00032,2]
[312082320,1705606239661,-215.84548789,0.00032,2]
[312082322,1705606239670,-215.84548789,0.00032,2]
[312082324,1705606239678,-215.84548789,0.00032,2]
[312082326,1705606239688,-215.84548,0.00032,2]
[312082328,1705606239697,-151.2478173,0.00032079,2]
[312082330,1705606239706,-186.39469076,0.00032144,2]
[312082332,1705606239715,-306.0,0.00032178,2]
[312082334,1705606239724,-500.0,0.00032243,2]
[312082336,1705606239733,-500.0,0.00032243,2]
[312082338,1705606239742,-440.87596717,0.00032243,2]
[312082340,1705606239751,-465.18931496,0.00032243,2]
[312082341,1705606239760,-418.6180166,0.00032243,2]
[312082343,1705606239770,-206.04326019,0.00032243,2]
[312082344,1705606239780,-596.36800727,0.00032243,2]
[312082345,1705606239789,-500.0,0.00032243,2]
[312082346,1705606239799,-500.0,0.00032243,2]
[312082347,1705606239808,-500.0,0.00032243,2]
[312082348,1705606239817,-500.0,0.00032243,2]
[312082349,1705606239826,-166.51127928,0.00032243,2]
[312082350,1705606239835,-500.0,0.00032243,2]
[312082351,1705606239844,-500.0,0.00032243,2]
[312082352,1705606239853,-500.0,0.00032243,2]
[312082353,1705606239862,-500.0,0.00032243,2]
[312082354,1705606239871,-500.0,0.00032243,2]
[312082355,1705606239880,-500.0,0.00032243,2]
[312082356,1705606239889,-500.0,0.00032243,2]
[312082358,1705606239898,-500.0,0.00032243,2]
[312082360,1705606239907,-50000.0,0.00032244,5]
[312082362,1705606239916,-77608.6513479,0.00032244,5]
[312082364,1705606239925,-13103.15281672,0.00032244,6]
[312082366,1705606239934,-2580.8,0.00032362,2]
[312082368,1705606239943,-4999.98,0.00032369,2]
[312082370,1705606239953,-153.0,0.00032452,2]
[312082372,1705606239962,-153.0,0.00032452,2]
[312082374,1705606239971,-153.0,0.00032452,2]
[312082376,1705606239981,-153.0,0.00032452,2]
[312082377,1705606239990,-153.0,0.00032452,2]
[312082378,1705606240000,-210.7718519,0.00032452,2]
[312082379,1705606240009,-150.5,0.00032469,30]
[312082380,1705606240018,-150.5,0.00032479,30]
[312082381,1705606240027,-150.5,0.00032489,30]
[312082382,1705606240036,-1273.45080855,0.0003249,2]
[312082383,1705606240046,-156.03917825,0.00032499,4]
[312082384,1705606240055,-660.15007955,0.00032499,4]
[312082385,1705606240064,-166.11653216,0.00032499,4]
[312082386,1705606240073,-253.43700046,0.00032499,4]
[312082387,1705606240083,-283.01176432,0.000325,3]
[312082388,1705606240092,-1200.0,0.000325,4]
[312082389,1705606240101,-650.89335401,0.000325,4]
[312082391,1705606240110,-195.1690538,0.000325,4]
[312082392,1705606240119,-1353.79153808,0.000325,5]
[312082393,1705606240128,-3214.7973618,0.000325,4]
[312082394,1705606240138,-1689.04186871,0.000325,4]
[312082396,1705606240146,-156.00691653,0.000325,4]
[312082397,1705606240155,-268.46914433,0.000325,4]
[312082399,1705606240164,-165.072399,0.00032694,2]
[312082401,1705606240174,-160.104227,0.00032792,2]
[312082403,1705606240182,-950.0,0.00032876,2]
[312082405,1705606240192,-184.094376,0.00032877,2]
[312082406,1705606240201,-184.094376,0.00032877,120]
[312082407,1705606240211,-386.32476631,0.00033,2]
[312082409,1705606240221,-2025.74284634,0.00033,2]
[312082411,1705606240230,-469.6351844,0.00033,3]
[312082414,1705606240304,-196.0,0.00033,2]
[312082415,1705606240313,-312.0,0.00033,2]
[312082416,1705606240322,-170.0,0.00033,2]
[312082417,1705606240332,-152.72560131,0.00033008,7]
[312082418,1705606240342,-154.44169357,0.00033115,7]
[312082419,1705606240352,-950.0,0.0003315,2]
[312082420,1705606240361,-312.0,0.00033151,2]
[312082421,1705606240374,-950.0,0.00033424,2]
[312082422,1705606240384,-160.104227,0.00033678,2]
[312082423,1705606240395,-950.0,0.00033698,2]
[312082424,1705606240405,-391.0,0.00033935,15]
[312082425,1705606240415,-950.0,0.00033972,2]
[312082426,1705606240425,-165.072399,0.00033973,2]
[312082427,1705606240435,-170.76550909,0.00033984,4]
[312082428,1705606240444,-721.33834789,0.00033985,2]
[312082429,1705606240456,-156.41283895,0.00033994,4]
[312082430,1705606240466,-200.98315984,0.00033994,4]
[312082431,1705606240479,-155.00310006,0.00033994,4]
[312082432,1705606240491,-238.71683161,0.00033994,4]
[312082433,1705606240501,-285.86450988,0.00033995,4]
[312082434,1705606240512,-569.88082184,0.00033995,4]
[312082435,1705606240522,-222.27499817,0.00033995,4]
[312082436,1705606240531,-155.51017843,0.00033995,4]
[312082437,1705606240541,-164.13059612,0.00033995,4]
[312082439,1705606240551,-250.0,0.00033995,7]
[312082440,1705606240560,-701.95047309,0.00033996,4]
[312082441,1705606240570,-531.63445466,0.00033996,4]
[312082442,1705606240580,-331.52516909,0.00033996,4]
[312082443,1705606240590,-434.23749797,0.00033996,4]
[312082444,1705606240600,-156.20759517,0.00033996,4]
[312082445,1705606240610,-37241.13097235,0.00033996,4]
[312082446,1705606240619,-1737.09627977,0.00033996,4]
[312082447,1705606240629,-34921.42490132,0.00033997,4]
[312082448,1705606240640,-154.9690062,0.00033998,4]
[312082450,1705606240649,-237.70431469,0.00033998,4]
[312082451,1705606240659,-472.11278471,0.00033998,4]
[312082452,1705606240669,-2071.67545931,0.00033998,4]
[312082453,1705606240679,-154.9690062,0.00033998,4]
[312082454,1705606240688,-150.0,0.00033999,2]
[312082455,1705606240698,-19093.20559608,0.00033999,20]
[312082456,1705606240710,-186.00070458,0.00033999,4]
[312082458,1705606240720,-500.0,0.00033999,4]
[312082459,1705606240730,-500.0,0.00033999,4]
[312082461,1705606240740,-500.0,0.00033999,4]
[312082463,1705606240749,-500.0,0.00033999,4]
[312082465,1705606240758,-500.0,0.00033999,4]
[312082467,1705606240767,-500.0,0.00033999,4]
[312082469,1705606240776,-500.0,0.00033999,4]
[312082470,1705606240784,-500.0,0.00033999,4]
[312082471,1705606240793,-500.0,0.00033999,4]
[312082472,1705606240802,-197.89760502,0.00033999,4]
[312082473,1705606240811,-500.0,0.00033999,4]
[312082474,1705606240820,-500.0,0.00033999,4]
[312082476,1705606240829,-500.0,0.00033999,4]
[312082478,1705606240838,-302.34734776,0.00033999,4]
[312082480,1705606240847,-500.0,0.00033999,4]
[312082481,1705606240856,-500.0,0.00033999,4]
[312082482,1705606240865,-500.0,0.00033999,4]
[312082484,1705606240874,-185.33777956,0.00033999,4]
[312082485,1705606240882,-191.31315244,0.00033999,4]
[312082487,1705606240892,-500.0,0.00033999,4]
[312082489,1705606240900,-500.0,0.00033999,4]
[312082491,1705606240909,-500.0,0.00033999,4]
[312082493,1705606240919,-499.99999999,0.00033999,4]
[312082494,1705606240928,-416.95960335,0.00033999,4]
[312082496,1705606240937,-500.0,0.00033999,4]
[312082497,1705606240947,-500.0,0.00033999,4]
[312082498,1705606240961,-500.0,0.00033999,4]
[312082499,1705606240975,-500.0,0.00033999,4]
[312082500,1705606240985,-503.91224626,0.00033999,4]
[312082501,1705606240995,-163.16267505,0.00033999,4]
[312082502,1705606241004,-500.0,0.00033999,4]
[312082503,1705606241013,-500.0,0.00033999,4]
[312082504,1705606241023,-500.0,0.00033999,4]
[312082505,1705606241032,-294.59443179,0.00033999,4]
[312082506,1705606241041,-500.0,0.00033999,4]
[312082507,1705606241051,-500.0,0.00033999,7]
[312082508,1705606241060,-500.0,0.00033999,7]
[312082509,1705606241069,-500.0,0.00033999,7]
[312082510,1705606241078,-197.27600545,0.00033999,7]
[312082511,1705606241087,-624.88345946,0.00033999,7]
[312082512,1705606241097,-500.0,0.00033999,7]
[312082513,1705606241107,-500.0,0.00033999,7]
[312082514,1705606241115,-500.0,0.00033999,7]
[312082515,1705606241130,-500.0,0.00033999,7]
[312082516,1705606241139,-500.0,0.00033999,7]
[312082517,1705606241149,-500.0,0.00033999,7]
[312082518,1705606241158,-500.0,0.00033999,7]
[312082519,1705606241167,-25153.93120552,0.00034,2]
[312082520,1705606241176,-26030.47590095,0.00034,2]
[312082521,1705606241185,-200.13788167,0.00034,2]
[312082522,1705606241194,-2000.0,0.00034029,2]
[312082523,1705606241205,-2000.0,0.00034029,2]
[312082524,1705606241216,-154.44169357,0.00034085,7]
[312082525,1705606241225,-153.56603548,0.00034224,7]
[312082526,1705606241237,-154.44169357,0.00034231,7]
[312082527,1705606241256,-950.0,0.00034246,2]
[312082528,1705606241266,-152.72560131,0.00034273,7]
[312082529,1705606241276,-186.39469075,0.00034329,2]
[312082530,1705606241286,-154.44169357,0.00034387,7]
[312082531,1705606241295,-10799.91264334,0.000345,7]
[312082532,1705606241304,-950.0,0.0003452,2]
[312082533,1705606241314,-312.0,0.00034521,2]
[312082534,1705606241324,-171.0,0.00034521,2]
[312082535,1705606241333,-160.104227,0.00034563,2]
[312082536,1705606241343,-1206.23882079,0.00034793,2]
[312082537,1705606241353,-950.0,0.00034794,2]
[312082538,1705606241363,-154.44169357,0.00034844,7]
[312082539,1705606241372,-154.44169357,0.00034966,7]
[312082540,1705606241382,-430.86875032,0.0003499,6]
[312082541,1705606241391,-2084.34070549,0.00035,4]
[312082542,1705606241401,-1719.41141957,0.00035,15]
[312082543,1705606241412,-591.69239792,0.00035,2]
[312082547,1705606241480,-6760.97413379,0.00035,4]
[312082548,1705606241490,-154.95351395,0.00035,4]
[312082550,1705606241499,-11157.84737616,0.00035,4]
[312082551,1705606241510,-14040.51613419,0.00035,2]
[312082552,1705606241519,-333.00867696,0.00035,4]
[312082553,1705606241531,-154.9690062,0.00035,4]
[312082554,1705606241540,-154.9690062,0.00035,2]
[312082556,1705606241549,-201.97980606,0.00035,2]
[312082558,1705606241559,-152.72560131,0.00035019,7]
[312082559,1705606241568,-950.0,0.00035068,2]
[312082561,1705606241578,-165.072399,0.00035251,2]
[312082563,1705606241587,-154.44169357,0.00035258,7]
[312082564,1705606241596,-950.0,0.00035342,2]
[312082565,1705606241607,-500.0,0.00035365,7]
[312082566,1705606241616,-160.104227,0.00035448,2]
[312082568,1705606241625,-154.44169357,0.00035589,7]
[312082569,1705606241635,-950.0,0.00035616,2]
[312082571,1705606241644,-985.895291,0.00035616,120]
[312082572,1705606241653,-201.97980606,0.000357,2]
[312082573,1705606241663,-152.23084,0.00036097,2]
[312082574,1705606241672,-317.0,0.00036247,2]
[312082575,1705606241681,-160.104227,0.00036333,2]
[312082576,1705606241690,-201.97980606,0.000364,2]
[312082578,1705606241701,-186.39469075,0.00036515,2]
[312082580,1705606241714,-165.072399,0.0003653,2]
[312082582,1705606241723,-154.44169357,0.00036592,7]
[312082584,1705606241733,-152.23084,0.00036698,2]
[312082586,1705606241742,-615.51661901,0.00036735,7]
[312082587,1705606241752,-152.72560131,0.00036775,7]
[312082588,1705606241761,-210.21085426,0.00036919,10]
[312082589,1705606241771,-242.37576727,0.000371,5]
[312082590,1705606241780,-40343.26690835,0.00037178,30]
[312082591,1705606241790,-160.104227,0.00037218,2]
[312082592,1705606241799,-152.23084,0.000373,2]
[312082593,1705606241808,-200.970092,0.00037322,2]
[312082594,1705606241817,-200.0,0.00037329,15]
[312082595,1705606241826,-348.0,0.00037329,15]
[312082596,1705606241836,-154.44169357,0.00037641,7]
[312082597,1705606241845,-152.72560131,0.00037777,7]
[312082598,1705606241855,-242.37576727,0.000378,5]
[312082599,1705606241864,-165.072399,0.00037808,2]
[312082600,1705606241873,-4999.99,0.00037887,2]
[312082601,1705606241882,-5000.02,0.00037898,2]
[312082602,1705606241892,-4999.99,0.00037901,2]
[312082603,1705606241902,-152.23084,0.00037902,2]
[312082604,1705606241912,-2419.21,0.0003791,2]
[312082605,1705606241921,-4999.99,0.00037911,2]
[312082606,1705606241930,-152.72560131,0.00037993,7]
[312082607,1705606241940,-3184.89020531,0.00038,7]
[312082608,1705606241950,-154.9690062,0.00038,2]
[312082609,1705606241963,-155.0,0.00038,2]
[312082610,1705606241973,-160.104227,0.00038103,2]
[312082611,1705606241983,-5000.0,0.00038126,2]
[312082612,1705606241992,-306.0,0.00038356,2]
[312082613,1705606242002,-306.0,0.00038356,2]
[312082614,1705606242012,-2137.88596785,0.000385,4]
[312082615,1705606242023,-282.22267284,0.000385,8]
[312082616,1705606242033,-312.0,0.00038663,14]
[312082617,1705606242042,-186.39469075,0.000387,2]
[312082618,1705606242052,-87275.22924036,0.000388,2]
[312082619,1705606242185,-34903.43745816,0.000388,2]
[312082620,1705606242265,-2003.6242816,0.00030901,3]
[312082621,1705606242276,-6677.98826248,0.00030901,3]
[312082622,1705606242287,-912.0393094,0.00030901,3]
[312082623,1705606242501,-3906.03814652,0.00030901,3]
[312082624,1705606242511,-2784.55459884,0.000388,2]
[312082625,1705606242523,-20350.32324166,0.000388,2]
[312082639,1705606243486,-833.88061964,0.00035,7]
[312082641,1705606243496,-1799.76399917,0.000388,2]
[312082642,1705606243545,-1188.0919417,0.000388,2]
[312082674,1705606246601,-448.0,0.00032054,2]
[312082675,1705606246615,-155.18762464,0.00035889,10]
[312082676,1705606246632,-398.99156041,0.00035889,4]
[312082677,1705606246649,-156.0,0.0003589,2]
[312082678,1705606246668,-156.0,0.00036,2]
[312082679,1705606246681,-156.0,0.00037397,2]
[312082680,1705606246693,-6187.66130826,0.00038799,4]
[312082681,1705606246707,-8710.85618684,0.000388,2]
[312082682,1705606246725,-636.90733142,0.000388,2]
[312082683,1705606247515,-3735.74976978,0.000388,2]
[312082684,1705606247602,207.68192761,0.00014578,2]
[312082685,1705606247650,683.73115674,0.00016198,2]
[312082687,1705606265407,683.73115674,0.00016198,2]
[312082688,1705606281402,683.73115674,0.00016198,2]
[312082689,1705606305401,683.73115674,0.00016198,2]
[312082692,1705606319417,683.73115674,0.00016198,2]
[312082693,1705606331607,646.22372186,0.00016198,5]
[312082694,1705606343409,683.73115674,0.00016198,2]
[312082695,1705606361416,683.73115674,0.00016198,2]
[312082700,1705606379398,552.4305119,0.00016198,2]
[312083944,1705606446488,-1757.0,0.00021,2]
[312085814,1705606576103,-48.88953935,0.00021,2]
[312085815,1705606576125,-130.11046065,0.00021,2]
[312085816,1705606642325,-154.93802479,0.00020998,2]
[312085817,1705606642345,-154.93802479,0.00020999,2]
[312085818,1705606642365,-5778.95538954,0.00020999,2]
[312085819,1705606642385,-24.8430533,0.00021,2]
[312085820,1705606642405,-683.32550758,0.00021,5]
[312085821,1705606712609,-606.99127798,0.00020997,2]
[312085822,1705606712633,-154.93802479,0.00020998,4]
[312085823,1705606712657,-178.61661634,0.00020998,2]
[312085824,1705606712679,-2813.10332854,0.00020999,2]
[312085825,1705606712704,-453.35075235,0.00021,5]
[312085826,1705606780962,-554.91533247,0.00020998,2]
[312085827,1705606780983,-1149.08466753,0.00020999,2]
[312085828,1705606850272,-154.98450155,0.000189,2]
[312085829,1705606850294,-450.01549845,0.00020999,2]
[312085830,1705606919330,-2.79018273,0.00020999,2]
[312085831,1705606919351,-217.11527815,0.00021,5]
[312085832,1705606919372,-683.73115674,0.00021,2]
[312085833,1705606919392,-154.95351395,0.00022,2]
[312085834,1705606919414,-154.95351395,0.00024999,4]
[312085835,1705606919434,-678.93201338,0.00025,2]
[312085836,1705606919454,-178.61661634,0.00025996,2]
[312085837,1705606919475,-606.99127798,0.00025996,2]
[312085838,1705606919495,-2040.91644678,0.00025997,2]
[312085840,1705606985424,-4718.82684458,0.00025995,2]
[312085841,1705606985445,-1830.62942806,0.00025996,2]
[312085842,1705606985466,-40343.26690835,0.00025997,7]
[312085843,1705606985486,-1861.27681901,0.00025999,2]
[312085850,1705607229093,-154.95351395,0.00025017,4]
[312085851,1705607229116,-166.666666,0.00025018,2]
[312085852,1705607229136,-4010.78536694,0.00025289,2]
[312085853,1705607229156,-1601.89034871,0.00025289,2]
[312085854,1705607229175,-554.91533247,0.0002529,2]
[312085855,1705607229195,-167.847466,0.00025291,2]
[312085856,1705607229215,-166.666666,0.000257,2]
[312085857,1705607229236,-951.82650953,0.00025999,2]
[312085858,1705607229255,-526.29712741,0.00026,2]
[312085859,1705607229281,-166.666666,0.00026382,2]
[312085860,1705607229301,-166.666666,0.00027064,2]
[312085861,1705607229321,-2101.67947703,0.00027131,2]
[312085862,1705607229347,-24900.0,0.00027133,2]
[312085863,1705607229368,-200.970093,0.00027391,2]
[312085864,1705607229388,-1341.370018,0.00027391,2]
[312085865,1705607229408,-261.3528024,0.000274,2]
[312085866,1705607229428,-166.666666,0.00027746,2]
[312085867,1705607229447,-305.46439516,0.00028,2]
[312085868,1705607229467,-166.666666,0.00028428,2]
[312085869,1705607229487,-639.36173752,0.00029283,2]
[312085870,1705607229508,-14502.12,0.0002949,3]
[312085871,1705607229528,-6993.69,0.0002949,3]
[312085872,1705607229547,-500.06736006,0.00029497,2]
[312085873,1705607229567,-155.29532475,0.00029498,2]
[312085874,1705607229590,-434.62642441,0.00029498,2]
[312085875,1705607229609,-1196.96135251,0.00029498,2]
[312085876,1705607229629,-361.23328326,0.00029498,2]
[312085877,1705607229650,-294.63708493,0.00029498,2]
[312085878,1705607229670,-485.93832649,0.00029498,2]
[312085879,1705607247111,-337.24438926,0.000274,2]
[312085880,1705607247132,-154.93802479,0.00029497,4]
[312085881,1705607247150,-526.29712741,0.00029497,2]
[312085882,1705607247169,-2101.67947703,0.00029497,2]
[312085883,1705607247188,-202.88876558,0.00029498,2]
[312085884,1705607247208,-640.55202948,0.00029498,2]
[312085885,1705607247227,-275.67908944,0.00029498,2]
[312085886,1705607247246,-259.65976003,0.00029498,2]
[312085887,1705607247266,-3566.29775533,0.00029498,2]
[312086240,1705607440295,-154.93802479,0.00026536,2]
[312086241,1705607440304,-246.01934779,0.00026537,2]
[312086242,1705607440314,-154.93802479,0.00026537,2]
[312086243,1705607440323,-554.91533247,0.00026537,2]
[312086244,1705607440333,-323.33687588,0.00026538,2]
[312086246,1705607440342,-1292.89594537,0.00026538,2]
[312086248,1705607440350,-154.93802479,0.00026538,2]
[312086249,1705607440359,-154.93802479,0.00026539,4]
[312086251,1705607440369,-170.76550909,0.0002654,2]
[312086253,1705607440378,-9885.3954689,0.00026546,2]
[312086255,1705607440387,-2813.10332854,0.00027388,2]
[312086256,1705607440396,-1287.54649735,0.0002739,2]
[312086258,1705607440406,-280.0,0.00027391,2]
[312086260,1705607440415,-200.0,0.000292,15]
[312086262,1705607440425,-154.93802479,0.00029488,2]
[312086264,1705607440434,-7900.7,0.00029488,3]
[312086266,1705607440444,-2697.16066087,0.00029489,3]
[312086268,1705607440456,-8679.83933913,0.00029489,3]
[312086270,1705607440465,-547.1835558,0.00029489,3]
[312086280,1705607440596,-8933.6464442,0.00029489,3]
[312086281,1705607440606,-331.52516909,0.00029495,2]
[312086282,1705607440615,-701.95047309,0.00029495,2]
[312086283,1705607440625,-641.55706452,0.00029495,2]
[312086284,1705607440634,-309.02199999,0.00029495,2]
[312086285,1705607440643,-200.98315984,0.00029495,2]
[312086286,1705607440653,-222.27499817,0.00029495,2]
[312086287,1705607440662,-155.00310006,0.00029496,2]
[312086288,1705607440671,-1735.58180168,0.00029496,2]
[312086289,1705607440681,-8961.85654012,0.00029497,2]
[312086290,1705607440691,-569.88082184,0.00029497,2]
[312086291,1705607440703,-721.33834789,0.00029497,2]
[312086292,1705607440712,-156.20759517,0.00029497,2]
[312086293,1705607440721,-160.22604488,0.00029497,2]
[312086295,1705607440732,-531.63445466,0.00029497,2]
[312086297,1705607440740,-156.41283895,0.00029497,2]
[312086298,1705607440749,-319.0046286,0.00029497,2]
[312086299,1705607440758,-406.64765626,0.00029497,2]
[312086300,1705607440767,-164.13059612,0.00029497,2]
[312086301,1705607440776,-159.61834637,0.00029497,2]
[312086302,1705607440785,-221.06387007,0.00029497,2]
[312086303,1705607440794,-285.86450988,0.00029497,2]
[312086304,1705607440803,-522.57590805,0.00029497,2]
[312086305,1705607440812,-1152.52908925,0.00029498,2]
[312086306,1705607440822,-737.22036652,0.00029498,2]
[312086307,1705607440830,-4010.78536694,0.00029498,2]
[312086308,1705607440840,-154.9690062,0.00029498,2]
[312086309,1705607440849,-2071.67545931,0.00029498,2]
[312086311,1705607440861,-237.70431469,0.00029498,2]
[312086313,1705607440870,-923.94117533,0.00029498,2]
[312086314,1705607440879,-302.77228463,0.00029498,2]
[312086315,1705607440888,-305.46439516,0.00029498,2]
[312086316,1705607440898,-351.009366,0.00029498,2]
[312086317,1705607440909,-156.00691653,0.00029498,2]
[312086318,1705607440918,-1353.79153808,0.00029498,5]
[312086320,1705607440927,-268.46914433,0.00029498,2]
[312086321,1705607440936,-3214.7973618,0.00029498,2]
[312086323,1705607440945,-1275.30976545,0.00029498,2]
[312086324,1705607440955,-253.43700046,0.00029498,2]
[312086325,1705607440963,-166.11653216,0.00029498,2]
[312086326,1705607440974,-660.15007955,0.00029498,2]
[312086327,1705607440985,-156.03917825,0.00029498,2]